bitfinex/quotes_ETHUSD_20250827
["timestamp","ask_amount","ask_price","bid_price","bid_amount"]
[1756325703088,1e-08,4569.8,4569.7,12.53785389]
[1756325705779,1e-08,4569.8,4569.7,28.67759162]
[1756325706376,1e-08,4569.8,4569.7,24.63659162]
[1756325706549,1e-08,4569.8,4569.7,28.67359162]
[1756325706946,1e-08,4569.8,4569.7,24.63659162]
[1756325707264,1e-08,4569.8,4569.7,28.67359162]
[1756325707667,1e-08,4569.8,4569.7,12.53285389]
[1756325708581,1e-08,4570.3,4570.2,5.98008804]
[1756325708785,1e-08,4570.3,4570.2,11.33527683]
[1756325708985,0.02,4571.8,4571.7,2.97937012]
[1756325709311,1e-08,4571.8,4571.7,11.69737012]
[1756325709460,1e-08,4571.8,4571.7,12.56197012]
[1756325709659,1e-08,4571.8,4571.7,14.03691137]
[1756325710326,0.04,4574.8,4571.7,14.03691137]
[1756325710327,0.1963,4574.7,4572.4,0.792]
[1756325710595,0.1963,4574.6,4572.5,4.05586987]
[1756325710806,0.1963,4574.6,4572.2,0.792]
[1756325710807,0.1096,4574.4,4573.7,0.1096]
[1756325710961,0.1096,4574.4,4572.6,1.683]
[1756325710962,0.002,4573.8,4572.8,1.856]
[1756325711163,0.1096,4573.1,4572.5,3.362]
[1756325711381,0.0039,4572.6,4572.5,3.362]
[1756325711593,0.1964,4572.6,4572.5,3.362]
[1756325711797,0.1964,4572.6,4572.5,3.4716]
[1756325712264,0.1964,4572.6,4572.5,4.1416]
[1756325712773,2.38333959,4572.6,4572.5,0.1096]
[1756325712992,0.76301903,4572.6,4571.9,0.1096]
[1756325713317,0.1964,4572.6,4571.1,0.20180404]
[1756325713596,2.18727634,4571.9,4571.7,0.1096]
[1756325713776,0.1983,4571.8,4571.5,0.1096]
[1756325714095,0.002,4571.7,4571.5,0.1096]
[1756325714265,0.1944,4571.6,4571.5,0.1096]
[1756325714465,0.1983,4571.6,4571.5,0.31140404]
[1756325714969,0.1983,4571.6,4571.5,0.1096]
[1756325715693,2.38571797,4571.6,4571.5,0.1096]
[1756325715890,0.65370085,4571.6,4571.5,0.1096]
[1756325716066,0.02,4571.8,4571.6,0.792]
[1756325716266,0.02,4571.8,4571.7,4.03]
[1756325716563,0.02,4571.8,4571.7,6.21737012]
[1756325717006,0.02,4571.8,4571.7,7.00937012]
[1756325717292,0.02,4571.8,4571.7,8.22571207]
[1756325717441,0.02,4571.8,4571.7,7.29507012]
[1756325717647,0.02,4571.8,4571.7,2.97937012]
[1756325717799,0.022,4571.8,4571.7,2.18737012]
[1756325717998,0.02,4571.8,4571.7,6.21537012]
[1756325718729,0.2163,4571.8,4571.7,4.028]
[1756325718899,0.2183,4571.8,4571.7,6.21537012]
[1756325719346,0.2163,4571.8,4571.7,6.21537012]
[1756325719502,0.2163,4571.8,4571.7,4.028]
[1756325719698,0.2183,4571.8,4571.5,0.1096]
[1756325719925,0.002,4571.7,4571.5,0.1096]
[1756325720132,0.43886049,4571.6,4571.5,0.1096]
[1756325720395,0.02,4571.8,4571.5,0.1096]
[1756325720902,0.02,4571.8,4571.7,2.18737012]
[1756325721113,0.1963,4571.7,4569.8,0.4695]
[1756325721313,0.002,4570.9,4570.7,3.226]
[1756325721613,0.002,4570.9,4570.8,2.20780082]
[1756325721946,0.02,4571.8,4570.9,2.18775295]
[1756325722152,0.26035255,4571.8,4570.9,0.792]
[1756325722353,0.02,4571.8,4571.6,2.1873783]
[1756325722561,0.002,4571.7,4571.6,2.1873783]
[1756325722726,0.002,4571.7,4571.4,4.026]
[1756325722924,0.1964,4571.7,4571.4,4.026]
[1756325723252,0.002,4571.7,4571.3,6.21255367]
[1756325723455,0.1944,4571.6,4571.3,4.025]
[1756325723653,0.0039,4571.4,4571.3,4.025]
[1756325724159,0.1964,4571.4,4571.2,4.025]
[1756325724308,0.1964,4571.4,4570.8,0.02]
[1756325724309,0.0039,4571.4,4570.9,2.18775295]
[1756325724508,0.1925,4571.3,4571.0,4.024]
[1756325724711,0.022,4571.8,4571.2,0.2857]
[1756325725053,0.022,4571.8,4571.7,2.18737012]
[1756325725211,0.022,4571.8,4571.7,7.00337012]
[1756325725406,0.022,4571.8,4571.7,7.49198043]
[1756325726632,0.022,4571.8,4571.7,7.20528043]
[1756325727047,0.022,4571.8,4571.7,7.49098043]
[1756325727415,0.022,4571.8,4571.7,7.69434915]
[1756325727634,0.002,4572.3,4572.2,2.18713092]
[1756325727816,0.002,4572.3,4572.2,9.11228125]
[1756325728018,0.1963,4574.3,4572.6,0.792]
[1756325728218,0.1963,4574.3,4572.7,4.89964794]
[1756325728552,0.2363,4574.8,4574.6,2.18594798]
[1756325728753,0.2363,4574.8,4573.9,4.022]
[1756325728754,0.1963,4574.7,4573.9,4.022]
[1756325729048,0.002,4574.4,4574.0,0.20341676]
[1756325729250,0.1944,4574.3,4574.1,0.20341676]
[1756325729447,0.04,4574.8,4574.2,0.40718864]
[1756325729647,0.04,4574.8,4574.3,0.20341676]
[1756325729855,0.1963,4574.4,4573.8,4.022]
[1756325730146,0.1963,4574.4,4573.9,0.20375443]
[1756325730450,0.1963,4574.4,4574.3,2.18612683]
[1756325731125,0.002,4574.4,4574.3,2.18612683]
[1756325731322,0.1096,4574.7,4574.3,2.18612683]
[1756325731542,0.04,4574.8,4574.3,0.1096]
[1756325731746,0.002,4574.4,4573.3,2.18660485]
[1756325731954,0.002,4574.4,4573.5,0.792]
[1756325732119,0.002,4574.4,4573.6,0.20350415]
[1756325732322,0.002,4574.4,4573.7,4.22350415]
[1756325732551,0.002,4574.4,4573.2,1.682]
[1756325732879,0.1944,4574.3,4573.3,0.20355131]
[1756325733160,0.0039,4573.4,4572.8,0.02]
[1756325736674,0.002,4571.9,4571.8,0.02]
[1756325736884,3.1963,4572.8,4571.9,2.18727443]
[1756325737062,3.1963,4572.8,4571.8,0.02]
[1756325737281,0.58343064,4572.7,4571.8,0.02]
[1756325737456,5.18694643,4572.6,4571.8,0.02]
[1756325737662,0.002,4571.9,4571.8,0.02]
[1756325737871,0.1964,4571.9,4571.8,0.02]
[1756325738258,2.38367443,4571.9,4571.8,0.02]
[1756325738455,2.38367443,4571.9,4570.8,2.20778956]
[1756325738456,3.95358057,4571.9,4570.8,2.20778956]
[1756325738786,0.1944,4571.8,4571.0,2.18769965]
[1756325739085,0.0039,4571.1,4570.8,0.02]
[1756325740176,0.1925,4571.7,4570.8,0.02]
[1756325740345,2.37987017,4571.7,4570.9,2.18770845]
[1756325740544,0.0058,4571.0,4570.8,0.02]
[1756325741179,0.53798702,4571.6,4571.0,2.18770509]
[1756325741475,3.0,4572.1,4571.3,2.1875561]
[1756325741476,2.18718307,4572.1,4571.3,2.1875561]
[1756325741676,0.1096,4571.7,4571.1,0.1096]
[1756325742000,0.1963,4571.2,4570.8,0.02]
[1756325742649,0.002,4571.1,4570.8,0.02]
[1756325742847,0.1944,4570.9,4570.8,0.02]
[1756325743157,2.49565295,4570.9,4570.8,0.02]
[1756325743810,9.51065295,4570.9,4570.8,0.02]
[1756325744095,3.3079,4570.9,4570.8,0.02]
[1756325744304,5.49565295,4570.9,4570.8,0.02]
[1756325744504,6.28893872,4570.9,4570.8,0.02]
[1756325744688,4.09728577,4570.9,4570.8,0.02]
[1756325744865,3.304,4570.9,4570.8,0.02]
[1756325745062,0.304,4570.9,4570.8,0.02]
[1756325746094,2.49565295,4570.9,4570.8,0.02]
[1756325748869,6.50865295,4570.9,4570.8,0.02]
[1756325749595,9.50865295,4570.9,4570.8,0.02]
[1756325749967,9.71238639,4570.9,4570.8,0.02]
[1756325751606,9.50865295,4570.9,4570.8,0.02]
[1756325751788,9.50865295,4570.9,4570.3,0.001]
[1756325751789,5.18794442,4570.5,4570.3,0.001]
[1756325752110,11.98718439,4570.4,4570.3,1e-08]
[1756325752296,11.98718439,4570.4,4569.8,0.021]
[1756325752297,2.98023168,4569.9,4569.8,1e-08]
[1756325752606,10.19582378,4569.9,4569.8,1e-08]
[1756325752793,10.39412378,4569.9,4569.8,1e-08]
[1756325753998,6.38212378,4569.9,4569.8,1e-08]
[1756325754205,10.39412378,4569.9,4569.8,1e-08]
[1756325754771,2.18832746,4569.7,4569.6,1e-08]
[1756325755000,2.39191956,4569.7,4569.6,1e-08]
[1756325755190,5.59021956,4569.7,4569.6,1e-08]
[1756325755994,5.58441956,4569.7,4569.6,1e-08]
[1756325756196,9.59541956,4569.7,4569.6,1e-08]
[1756325756509,9.39182746,4569.7,4569.6,1e-08]
[1756325757002,5.38082746,4569.7,4569.6,1e-08]
[1756325757205,6.13773337,4569.7,4569.6,1e-08]
[1756325757506,10.14773337,4569.7,4569.6,1e-08]
[1756325757874,10.15353337,4569.7,4569.6,1e-08]
[1756325758080,2.18851902,4569.3,4569.2,0.001]
[1756325758382,10.88151902,4569.3,4569.2,0.001]
[1756325758573,11.66342432,4569.3,4569.2,0.001]
[1756325759409,3.0,4569.2,4568.7,0.001]
[1756325759573,2.18871063,4568.9,4568.7,0.001]
[1756325759780,9.38651063,4568.9,4568.7,0.001]
[1756325760111,10.15281654,4568.9,4568.7,0.001]
[1756325760308,10.15281654,4568.9,4567.8,0.02]
[1756325760309,2.18885435,4568.6,4567.8,0.02]
[1756325760488,2.18918978,4567.9,4567.8,0.02]
[1756325760684,3.0,4568.1,4567.8,0.4543]
[1756325760897,4.009,4568.2,4568.0,0.3028]
[1756325761210,9.19804601,4568.2,4568.1,0.4343]
[1756325761410,7.009,4568.2,4568.1,0.7371]
[1756325761613,5.18904601,4568.2,4568.1,0.7371]
[1756325761792,5.18904601,4568.2,4568.1,0.3028]
[1756325761993,2.18918978,4567.9,4567.8,0.02]
[1756325762191,6.30778978,4567.9,4567.8,0.02]
[1756325762501,2.29878978,4567.9,4567.8,0.7571]
[1756325762709,2.29878978,4567.9,4567.8,0.3228]
[1756325762883,2.18918978,4567.9,4567.8,0.3228]
[1756325763079,2.29878978,4567.9,4567.8,0.3228]
[1756325763284,0.1096,4567.9,4567.8,0.7571]
[1756325763521,4.1176,4567.9,4567.8,0.7571]
[1756325763683,6.30678978,4567.9,4567.8,0.7571]
[1756325763877,0.1096,4567.9,4567.8,0.7571]
[1756325764390,4.1176,4567.9,4567.8,0.7571]
[1756325764582,6.30678978,4567.9,4567.8,0.3228]
[1756325764879,6.30678978,4567.9,4567.8,0.02]
[1756325765081,10.35268009,4567.9,4567.8,0.02]
[1756325765711,10.35468009,4567.9,4567.8,0.02]
[1756325766429,10.55760317,4567.9,4567.8,1e-08]
[1756325766593,10.55460317,4567.9,4567.8,1e-08]
[1756325767085,10.55660317,4567.9,4567.8,1e-08]
[1756325767407,6.54760317,4567.9,4567.8,1e-08]
[1756325767726,10.35830317,4567.9,4567.8,1e-08]
[1756325768484,3.31252308,4567.9,4567.8,0.73710001]
[1756325768684,0.1096,4567.9,4567.8,0.73710001]
[1756325769003,1.683,4568.7,4567.8,0.73710001]
[1756325769004,4.1156,4568.0,4567.8,0.73710001]
[1756325769217,4.1156,4568.0,4567.9,0.4343]
[1756325769404,7.1156,4568.0,4567.9,0.7371]
[1756325770235,7.1156,4568.0,4567.9,0.3028]
[1756325770918,7.1156,4568.0,4567.9,0.7371]
[1756325771285,3.1096,4568.0,4567.9,0.7371]
[1756325771484,7.1146,4568.0,4567.9,0.7371]
[1756325771710,3.1096,4568.0,4567.9,0.7371]
[1756325772021,2.18878862,4568.8,4567.9,0.7371]
[1756325772022,4.005,4568.8,4568.2,2.18901527]
[1756325772324,4.005,4568.8,4568.7,0.3028]
[1756325772487,4.005,4568.8,4568.7,0.7371]
[1756325772687,3.0,4568.7,4568.0,0.4343]
[1756325772900,0.1096,4568.4,4568.0,0.4343]
[1756325773105,4.004,4568.3,4568.1,0.4343]
[1756325773289,4.004,4568.3,4568.2,0.7371]
[1756325773631,0.1096,4567.9,4567.8,1e-08]
[1756325773835,6.30278978,4567.9,4567.8,1e-08]
[1756325774007,10.1558794,4567.9,4567.8,1e-08]
[1756325775432,6.1479794,4567.9,4567.8,1e-08]
[1756325775635,10.1509794,4567.9,4567.8,1e-08]
[1756325776134,7.1126,4567.9,4567.8,0.73710001]
[1756325776435,4.003,4568.3,4567.9,2.18914212]
[1756325776635,7.003,4568.3,4568.2,0.3087]
[1756325776933,7.003,4568.3,4567.8,0.10960001]
[1756325776934,7.20682387,4568.3,4567.8,1e-08]
[1756325777134,0.1096,4568.0,4567.9,0.4541]
[1756325777538,0.1096,4568.0,4567.9,0.7628]
[1756325778411,4.1116,4568.0,4567.8,0.00100001]
[1756325778808,0.1096,4568.0,4567.9,0.3087]
[1756325779036,0.1096,4568.0,4567.9,0.7628]
[1756325779339,0.1096,4568.0,4567.9,2.95198978]
[1756325779507,0.1096,4568.0,4567.9,0.7628]
[1756325779703,0.1096,4568.0,4567.9,0.3087]
[1756325779911,2.29874185,4568.0,4567.9,0.3087]
[1756325780121,0.1096,4568.0,4567.9,0.3087]
[1756325780831,0.1096,4568.0,4567.9,2.95198978]
[1756325781231,0.1096,4568.3,4568.1,2.18908544]
[1756325781431,0.1096,4568.3,4568.2,0.7628]
[1756325782142,0.1096,4568.3,4567.8,0.00100001]
[1756325782334,0.1096,4568.3,4568.2,0.3087]
[1756325782512,0.1096,4568.3,4568.2,0.7628]
[1756325782713,0.1096,4568.3,4568.2,2.95184601]
[1756325782942,0.1116,4568.7,4568.4,2.18894483]
[1756325783350,0.1116,4568.7,4568.6,0.3087]
[1756325783554,0.1116,4568.7,4568.6,0.7628]
[1756325783914,0.002,4568.7,4568.6,2.95165435]
[1756325784113,0.002,4568.7,4568.6,3.57531357]
[1756325784738,0.002,4568.7,4568.6,4.36731357]
[1756325785143,0.002,4568.7,4568.6,3.57531357]
[1756325785417,0.002,4568.7,4568.6,3.06125435]
[1756325790354,0.002,4568.7,4568.6,3.08314289]
[1756325790950,0.002,4568.7,4568.6,3.87514289]
[1756325791355,1e-08,4568.7,4568.6,3.87514289]
[1756325792244,1e-08,4569.2,4568.7,0.792]
[1756325792441,1e-08,4569.2,4568.9,3.0]
[1756325792752,1e-08,4569.2,4568.8,2.09353021]
[1756325792753,1e-08,4569.2,4569.1,6.28931482]
[1756325793070,1e-08,4569.2,4569.1,10.28331482]
[1756325793379,1e-08,4569.2,4569.1,3.06101482]
[1756325793660,1e-08,4569.2,4569.1,7.84601482]
[1756325794065,1e-08,4569.2,4569.1,12.01778257]
[1756325797555,0.002,4569.7,4569.1,12.01778257]
[1756325797556,1e-08,4569.7,4569.2,5.98056692]
[1756325797741,1e-08,4569.7,4569.5,0.792]
[1756325798051,1e-08,4569.7,4569.4,5.18847113]
[1756325798052,1e-08,4569.7,4569.6,10.4115591]
[1756325798251,1e-08,4570.2,4570.1,2.98013592]
[1756325798433,1e-08,4570.2,4570.1,11.67501727]
[1756325798635,1e-08,4570.2,4570.1,12.41593592]
[1756325799227,0.1296,4571.8,4571.7,2.18737012]
[1756325799228,0.02,4571.8,4571.7,2.18737012]
[1756325799544,0.02,4571.8,4571.7,6.17737012]
[1756325799745,0.02,4571.8,4571.7,6.28697012]
[1756325799943,0.022,4571.8,4571.7,2.29697012]
[1756325802628,0.022,4571.8,4571.7,0.1096]
[1756325803026,0.022,4571.8,4571.7,2.29697012]
[1756325803754,0.02,4571.8,4571.7,2.29697012]
[1756325804156,0.0239,4571.8,4571.7,0.1096]
[1756325804374,0.02,4571.8,4571.7,2.29697012]
[1756325804545,0.02,4571.8,4571.7,4.66743105]
[1756325804734,0.02,4571.8,4571.7,4.64555735]
[1756325804935,1e-08,4571.8,4571.7,4.64555735]
[1756325805131,1e-08,4571.8,4571.7,7.64555735]
[1756325805382,1e-08,4571.8,4571.7,7.53595735]
[1756325805699,1e-08,4571.8,4571.7,7.64555735]
[1756325806037,1e-08,4571.8,4571.7,11.63055735]
[1756325807067,1e-08,4571.8,4571.7,7.64555735]
[1756325807269,1e-08,4571.8,4571.7,11.62955735]
[1756325810751,1e-08,4571.8,4571.7,11.62755735]
[1756325811895,1e-08,4572.8,4572.7,2.97889177]
[1756325812197,1e-08,4572.8,4572.7,11.77336068]
[1756325812411,1e-08,4572.8,4572.7,12.51719177]
[1756325812751,1e-08,4572.8,4572.7,12.05089177]
[1756325812957,1e-08,4572.8,4572.7,11.75149177]
[1756325813152,1e-08,4572.8,4572.7,9.16433714]
[1756325813365,1e-08,4572.8,4572.7,13.14433714]
[1756325814522,0.00200001,4572.8,4572.7,13.14433714]
[1756325815181,0.00200001,4572.8,4572.7,13.91003714]
[1756325816071,0.00200001,4572.8,4572.7,13.44373714]
[1756325816263,0.00200001,4572.8,4572.7,13.91003714]
[1756325817570,1e-08,4572.8,4572.7,13.91003714]
[1756325818795,1e-08,4572.8,4572.7,13.90603714]
[1756325824596,0.04,4574.8,4572.7,13.90603714]
[1756325824597,0.04,4574.8,4573.7,0.792]
[1756325824901,0.04,4574.8,4574.7,2.29553568]
[1756325825195,0.04,4574.8,4574.7,7.08139503]
[1756325825377,0.04,4574.8,4574.7,7.05953568]
[1756325825378,0.042,4574.8,4574.7,7.05953568]
[1756325826129,0.2364,4574.8,4574.7,0.1096]
[1756325826301,0.2364,4574.8,4574.2,3.971]
[1756325826513,1e-08,4575.2,4575.1,2.18574457]
[1756325826678,0.02,4576.8,4576.7,2.97698044]
[1756325826877,0.1963,4576.7,4576.6,6.15602818]
[1756325827081,0.1983,4576.7,4576.6,6.26562818]
[1756325827377,0.02,4576.8,4576.7,2.18498044]
[1756325827588,0.02,4576.8,4576.7,6.17683024]
[1756325827788,0.022,4576.8,4576.7,6.15498044]
[1756325828106,0.2164,4576.8,4576.7,6.15498044]
[1756325828302,0.2164,4576.8,4576.6,2.29462818]
[1756325828303,0.2164,4576.8,4575.3,3.0]
[1756325828506,0.1944,4576.7,4576.4,2.18512015]
[1756325828677,0.1944,4576.7,4575.0,6.86678152]
[1756325828678,0.0039,4576.5,4576.1,3.97]
[1756325829004,0.1925,4576.4,4576.2,2.18521917]
[1756325829173,0.02,4576.8,4576.3,3.969]
[1756325829376,0.1963,4576.7,4576.4,2.18511009]
[1756325829579,0.002,4576.5,4576.4,2.18511009]
[1756325829933,0.002,4576.5,4576.3,3.969]
[1756325829934,0.1964,4576.5,4576.3,3.969]
[1756325830089,0.002,4576.5,4576.4,2.18512367]
[1756325830489,0.002,4576.5,4576.3,3.969]
[1756325830786,0.1944,4576.4,4576.3,3.969]
[1756325830990,0.1983,4576.4,4576.1,6.15426411]
[1756325831208,0.1925,4576.3,4576.1,6.15426411]
[1756325831511,0.0058,4576.2,4576.1,6.15426411]
[1756325832210,0.1964,4576.2,4576.1,6.15426411]
[1756325832376,0.1964,4576.2,4576.0,3.968]
[1756325832585,0.1906,4576.1,4576.0,3.968]
[1756325832785,0.1982,4576.1,4576.0,3.968]
[1756325832980,0.1982,4576.1,4575.0,1.681]
[1756325833188,0.1888,4576.0,4575.1,3.968]
[1756325833393,3.02,4576.8,4575.4,0.792]
[1756325833394,0.1963,4576.6,4575.4,0.792]
[1756325833593,0.1963,4576.6,4576.1,2.18525374]
[1756325833808,0.002,4576.2,4576.1,2.18525374]
[1756325835385,0.2144,4576.8,4576.1,2.18525374]
[1756325835386,0.02,4576.8,4576.7,2.18498044]
[1756325835585,0.02,4576.8,4576.7,6.15198044]
[1756325836318,0.022,4576.8,4576.7,6.15198044]
[1756325837320,0.022,4576.8,4576.7,3.967]
[1756325837515,0.2164,4576.8,4576.4,3.966]
[1756325837723,0.1944,4576.7,4576.3,6.15116594]
[1756325837900,0.0039,4576.4,4576.3,6.15116594]
[1756325838217,0.0039,4576.4,4576.3,3.966]
[1756325838218,0.1964,4576.4,4576.3,3.966]
[1756325838423,0.1096,4576.7,4576.3,4.2607]
[1756325838618,0.02,4576.8,4576.7,2.97698044]
[1756325838821,0.02,4576.8,4576.7,6.94298044]
[1756325839498,0.02,4576.8,4576.7,6.15098044]
[1756325839699,0.02,4576.8,4576.7,7.68428044]
[1756325839896,0.02,4576.8,4576.7,10.68428044]
[1756325839897,1e-08,4576.8,4576.7,10.68428044]
[1756325840098,1e-08,4576.8,4576.7,12.01382048]
[1756325842090,1e-08,4577.8,4577.7,2.18450313]
[1756325842294,1e-08,4577.8,4577.7,11.62050313]
[1756325842522,1e-08,4577.8,4577.7,12.36180313]
[1756325843821,1e-08,4577.8,4577.7,4.65650313]
[1756325843998,1e-08,4577.8,4577.7,8.62050313]
[1756325844198,1e-08,4577.8,4577.7,29.13544854]
[1756325844398,1e-08,4577.8,4577.7,29.58204854]
[1756325844814,1e-08,4577.8,4577.7,13.44231081]
[1756325845015,1e-08,4577.8,4577.7,29.58204854]
[1756325848332,1e-08,4577.8,4577.7,9.03171081]
[1756325848538,1e-08,4577.8,4577.7,12.02280313]
[1756325849035,0.00200001,4577.8,4577.7,7.93610313]
[1756325849240,0.00200001,4577.8,4577.7,8.72810313]
[1756325849407,1e-08,4577.8,4577.7,8.72810313]
[1756325849803,1e-08,4577.8,4577.7,13.45107081]
[1756325851023,1e-08,4578.8,4578.7,5.97602603]
[1756325851231,1e-08,4579.8,4579.7,5.97554914]
[1756325851451,1e-08,4579.8,4579.7,28.86690377]
[1756325851652,1e-08,4580.8,4580.7,5.97507245]
[1756325851852,1e-08,4580.8,4580.7,11.61607245]
[1756325852167,1e-08,4580.8,4580.7,8.39637245]
[1756325852310,1e-08,4580.8,4580.7,28.49711018]
[1756325852509,0.02,4581.8,4581.7,2.97459597]
[1756325852706,0.02,4581.8,4581.7,8.61559597]
[1756325852907,0.022,4581.8,4581.7,4.65459597]
[1756325853110,0.2164,4581.8,4580.6,3.792]
[1756325853307,0.1944,4581.7,4581.6,2.18264361]
[1756325853537,0.02,4581.8,4581.7,2.97459597]
[1756325853719,0.02,4581.8,4581.7,2.99642192]
[1756325854114,0.022,4581.8,4581.7,2.97459597]
[1756325854744,0.2164,4581.8,4581.6,6.1436404]
[1756325854908,0.2164,4581.8,4581.1,1.679]
[1756325854909,0.1944,4581.7,4581.1,1.679]
[1756325855105,0.1963,4581.2,4580.8,3.96]
[1756325855305,0.002,4581.1,4580.4,3.96]
[1756325855510,0.1944,4580.5,4580.4,3.96]
[1756325855746,0.1944,4580.5,4580.4,6.14321543]
[1756325855910,0.1983,4580.5,4580.4,6.14321543]
[1756325856112,0.1983,4580.5,4580.4,3.96]
[1756325857119,0.1983,4580.5,4579.9,3.96]
[1756325857469,0.1983,4580.5,4579.6,1.679]
[1756325857470,0.0039,4580.4,4579.4,3.959]
[1756325857818,0.1925,4579.5,4579.4,3.959]
[1756325858132,0.1983,4579.5,4579.2,3.959]
[1756325858339,0.0058,4579.4,4579.2,3.959]
[1756325858517,0.1906,4579.3,4579.2,6.14274406]
[1756325858713,0.1963,4580.5,4580.0,2.18338286]
[1756325858946,0.002,4580.1,4579.9,3.959]
[1756325859147,0.002,4580.1,4580.0,2.18340611]
[1756325859369,0.002,4580.1,4579.2,0.83266183]
[1756325859520,0.1944,4580.0,4579.8,0.02]
[1756325859718,0.1983,4579.9,4579.8,0.02]
[1756325859976,0.1983,4579.9,4579.8,2.20350146]
[1756325859977,0.1963,4579.9,4579.8,2.20350146]
[1756325860320,0.1963,4580.6,4579.8,0.1288]
[1756325860555,0.1088,4581.0,4580.7,0.1088]
[1756325860556,0.1963,4581.0,4580.7,0.1088]
[1756325860740,0.002,4580.8,4580.7,0.1088]
[1756325860942,2.1826387,4581.7,4580.7,0.1088]
[1756325860943,2.18222494,4582.5,4580.7,3.959]
[1756325861143,0.02,4582.8,4581.6,2.18264332]
[1756325861343,0.1963,4582.2,4580.9,0.02182977]
[1756325861551,0.2163,4581.8,4581.0,3.963]
[1756325861844,0.2163,4581.8,4581.0,6.14592607]
[1756325862155,0.43618,4581.7,4581.3,2.18277676]
[1756325862358,0.02,4581.8,4581.0,3.963]
[1756325862359,0.002,4581.4,4581.0,3.963]
[1756325862660,0.1944,4581.3,4581.0,3.963]
[1756325862859,2.18295974,4581.0,4579.1,2.18381011]
[1756325863043,0.1963,4579.9,4578.9,1.679]
[1756325863244,0.1983,4579.9,4579.0,1.84]
[1756325863781,2.6199202,4579.9,4579.0,1.84]
[1756325864132,2.6199202,4579.9,4578.8,0.02]
[1756325864539,5.6199202,4579.9,4578.8,0.02]
[1756325865940,3.43646642,4579.9,4578.8,0.02]
[1756325866136,3.43646642,4579.9,4579.1,2.183831]
[1756325866137,3.1983,4579.9,4579.1,2.183831]
[1756325866438,5.38175378,4579.9,4578.8,0.02]
[1756325867186,0.1963,4579.9,4578.8,0.02]
[1756325867384,0.02,4581.8,4579.8,0.3344]
[1756325867675,0.02,4581.8,4581.1,2.18287357]
[1756325867875,0.02,4581.8,4581.2,2.18282761]
[1756325868183,0.02,4581.8,4580.9,5.657]
[1756325868495,0.02,4581.8,4581.7,2.18259597]
[1756325870576,0.022,4581.8,4581.6,2.1826342]
[1756325871058,0.02,4581.8,4581.7,2.18259597]
[1756325871693,0.02,4582.8,4581.7,0.87712595]
[1756325871849,0.02,4582.8,4582.7,2.18211971]
[1756325872182,0.02,4582.8,4582.7,6.16811971]
[1756325872546,0.02,4582.8,4582.7,6.48251971]
[1756325873161,0.02,4582.8,4582.7,6.16811971]
[1756325873902,0.02,4582.8,4582.7,7.31755164]
[1756325874120,0.02,4583.8,4583.7,2.18164365]
[1756325874259,1e-08,4583.8,4583.7,4.65264365]
[1756325874461,1e-08,4583.8,4583.7,8.59314365]
[1756325874695,1e-08,4583.8,4583.7,5.11255266]
[1756325875012,1e-08,4583.8,4583.7,8.16204365]
[1756325875397,1e-08,4583.8,4583.7,8.59414365]
[1756325875771,1e-08,4583.8,4583.7,7.84764365]
[1756325876273,0.00200001,4583.8,4582.7,0.83503193]
[1756325876510,0.19640001,4583.8,4582.8,3.984]
[1756325876862,0.19640001,4583.8,4582.9,2.18200554]
[1756325877062,0.19640001,4583.8,4583.0,3.988]
[1756325877299,0.19640001,4583.8,4581.8,2.11452665]
[1756325877463,0.19640001,4583.8,4582.9,2.1820179]
[1756325877666,0.19640001,4583.8,4583.1,2.18190334]
[1756325877870,0.19640001,4583.8,4582.7,3.986]
[1756325878096,0.19640001,4583.8,4582.8,2.18206483]
[1756325878277,0.19640001,4583.8,4582.7,3.985]
[1756325879118,0.00200001,4583.8,4582.7,4.60171373]
[1756325879267,0.00200001,4583.8,4582.8,1.678]
[1756325879467,0.00200001,4583.8,4582.8,5.66]
[1756325879714,0.00200001,4583.8,4582.4,6.16422633]
[1756325880035,0.43219091,4583.7,4582.5,2.18219697]
[1756325880207,0.1963,4583.6,4582.1,1.678]
[1756325880373,0.1963,4583.5,4582.1,1.678]
[1756325880573,0.23779091,4583.7,4582.0,3.982]
[1756325880922,1e-08,4583.8,4582.4,0.792]
[1756325881073,1e-08,4583.8,4583.7,2.18164365]
[1756325881281,1e-08,4583.8,4583.7,2.49604365]
[1756325881494,1e-08,4583.8,4583.7,2.94996008]
[1756325881696,1e-08,4583.8,4583.7,3.03694365]
[1756325882002,1e-08,4583.8,4583.7,3.98002639]
[1756325882578,1e-08,4583.8,4583.7,4.77202639]
[1756325882781,1e-08,4583.8,4583.7,4.75020996]
[1756325883007,0.02,4587.8,4586.7,2.18021671]
[1756325883216,0.02,4587.8,4586.7,6.17121671]
[1756325883436,1.678,4587.6,4585.4,1.678]
[1756325883707,1.678,4587.6,4586.7,0.1088]
[1756325883708,0.022,4586.8,4586.7,0.1088]
[1756325883933,0.1088,4586.7,4585.0,4.017]
[1756325884101,0.3032,4586.7,4586.0,0.1088]
[1756325884474,1.9812,4586.7,4586.0,0.1088]
[1756325884707,1.9812,4586.7,4584.4,3.24]
[1756325884708,0.0039,4586.1,4584.4,3.24]
[1756325884873,0.1088,4585.4,4584.8,0.1088]
[1756325885211,0.1088,4585.8,4585.1,0.1088]
[1756325885708,1.7868,4585.8,4583.9,3.24]
[1756325886008,0.002,4585.2,4583.9,3.24]
[1756325886188,0.002,4585.2,4584.5,0.1088]
[1756325886404,2.18293087,4585.2,4584.5,0.1088]
[1756325887315,0.002,4585.2,4584.5,0.1088]